Cogmind - Beta 14 *** ADVENTURER MODE // 2024.12.04 @ 22:53:56 Player: Sawbones Result: Destroyed by G-73 Enforcer with Phase Gun Performance ------------- Evolutions (6) 3000 Regions Visited (15) 3000 Robots Destroyed (88) 440 Value Destroyed (4483) 4483 Prototype IDs (3) 60 Alien Tech Used (0) 0 Bonus (1126) 1126 TOTAL SCORE: 12109 Bonus ------- High Alert Combat Kills 71 Follower Combat Kills 155 Entered Garrisons 400 Used RIF Installer 500 Cogmind --------- Core Integrity 0/1150 Matter 300/300 Energy 315/315 System Corruption 0% Temperature Cool (0) Movement Core (300) Ox5 Location -3/Proximity Caves Parts ------- > --- POWER (4) -------- Neutrino Core > --- PROPULSION (4) --- (None) > --- UTILITY (9) ------ Advanced Heat Sink Focal Shield > --- WEAPON (2) ------- (None) > --- INVENTORY (5) ---- Advanced ECM Suite Cloaking Device Relay Coupler [Swarmer] (53) Relay Coupler [Demolisher] (31) Peak State ------------ > --- POWER ------------ Neutrino Core Neutrino Core Neutrino Core > --- PROPULSION ------- Improved Gravmag System Antigrav System Combat Gravmag System Improved Gyrokinetic Inverter > --- UTILITY ---------- Gravity Neutralizer Advanced Targeting Computer Melee Analysis Suite Microactuators System Shield > --- WEAPON ----------- Improved Arc Projector Lance > --- INVENTORY -------- Advanced ECM Suite Cloaking Device Relay Coupler [Swarmer] Relay Coupler [Demolisher] [Rating: 74] Favorites ----------- Power Neutrino Core Engine Light Ion Engine Power Core Neutrino Core Propulsion Aluminum Leg Leg Aluminum Leg Hover Unit Improved Gyrokinetic Inverter Flight Unit Nuclear Pulse Array Utility Improved Terrain Scanner Device Improved Terrain Scanner Storage Small Storage Unit Processor Targeting Computer Hackware Hacking Suite Protection Improved Light Armor Plating Weapon Assault Rifle Energy Gun Improved Arc Projector Ballistic Gun Assault Rifle Ballistic Cannon Enhanced Gauss Cannon Launcher Grenade Launcher Special Weapon Remote Datajack Impact Weapon Great Maul Piercing Weapon Lance Build | -11 -10 -10 -9 -8 -7 -7 -7 -7 -6 -5 -4 -4 -4 -4 -3 ------- Run | Yrd Mat Min Mat Mat Fac Gar Fac Gar Fac Fac Fac Upp Upp War Pro Slots Evolved 12 | . . . 2 2 2 . . . 2 2 2 . . . . Power 3 | . . . . 1 . . . . . 1 1 . . . . Propulsion 2 | . . . . 1 . . . . 1 . . . . . . Utility 7 | . . . 2 . 2 . . . 1 1 1 . . . . Weapon . | . . . . . . . . . . . . . . . . Parts Attached 155 | 8 1 4 5 17 3 26 4 9 13 31 7 14 6 . 7 Power 27 | 1 1 . . 4 . 5 1 2 1 3 3 5 . . 1 Engine 10 | 1 1 . . 1 . 3 1 . 1 2 . . . . . Core 17 | . . . . 3 . 2 . 2 . 1 3 5 . . 1 Reactor . | . . . . . . . . . . . . . . . . Propulsion 36 | 3 . 1 . 8 . 6 1 . 3 5 2 4 1 . 2 Treads . | . . . . . . . . . . . . . . . . Leg 26 | 3 . 1 . 5 . 6 1 . 3 2 . 2 1 . 2 Wheel . | . . . . . . . . . . . . . . . . Hover 8 | . . . . 3 . . . . . 2 2 1 . . . Flight 2 | . . . . . . . . . . 1 . 1 . . . Utility 54 | 2 . 2 3 3 2 6 1 4 7 18 1 . 3 . 2 Device 27 | 2 . 2 1 1 1 4 1 1 3 9 . . 1 . 1 Storage 6 | . . . 1 2 . . . . . 3 . . . . . Processor 5 | . . . 1 . . 1 . . . 2 1 . . . . Hackware 7 | . . . . . 1 . . 3 2 1 . . . . . Protection 9 | . . . . . . 1 . . 2 3 . . 2 . 1 Artifact . | . . . . . . . . . . . . . . . . Weapon 38 | 2 . 1 2 2 1 9 1 3 2 5 1 5 2 . 2 Energy Gun 8 | . . . . 2 1 . . . . . 1 2 . . 2 Energy Cannon . | . . . . . . . . . . . . . . . . Ballistic Gun 16 | 2 . . . . . 5 . 2 1 1 . 3 2 . . Ballistic Cannon 5 | . . . 2 . . 1 . . . 2 . . . . . Launcher 1 | . . 1 . . . . . . . . . . . . . Special Weapon 6 | . . . . . . 3 1 1 1 . . . . . . Impact Weapon 1 | . . . . . . . . . . 1 . . . . . Slashing Weapon . | . . . . . . . . . . . . . . . . Piercing Weapon 1 | . . . . . . . . . . 1 . . . . . Special Melee Weapon . | . . . . . . . . . . . . . . . . Unidentified Prototypes 3 | . . 1 . . . . . . 1 1 . . . . . Parts Lost 70 | . . 2 1 3 . 10 . . 5 19 1 13 12 . 4 Power 16 | . . . . 1 . 1 . . 2 4 . 5 3 . . Propulsion 20 | . . 1 . 2 . 4 . . . 5 1 1 4 . 2 Utility 20 | . . . 1 . . 3 . . 2 8 . 4 1 . 1 Weapon 14 | . . 1 . . . 2 . . 1 2 . 3 4 . 1 Highest Loss Streak 8 | . . 2 1 2 . 8 . . 2 5 1 6 5 . 3 To Critical Strikes 1 | . . . . . . . . . . . . . 1 . . Average Slot Usage (%) 71 | . 100 99 98 92 100 94 99 94 90 73 58 54 24 21 28 Engine 4 | . 14 14 11 3 . 10 15 14 2 4 . . . . . Core 5 | . . . . 13 15 3 . . 9 . 5 10 1 . 1 Leg 12 | . 28 28 22 21 . 18 22 23 24 15 . . 4 . 2 Hover 4 | . . . . 1 23 1 . . . . 18 12 5 5 4 Device 11 | . 28 28 25 17 23 17 15 4 9 13 10 6 . 5 6 Storage 3 | . . . 6 9 7 7 7 7 6 2 . . . . . Processor 6 | . . . 11 9 7 4 7 7 6 10 7 8 3 . . Hackware 4 | . . . . . 7 7 7 12 8 7 5 3 . . . Protection 3 | . . . . . . 5 7 7 5 2 . . 2 10 10 Energy Gun 2 | . . . . 16 15 1 . . . . 3 3 4 . 2 Ballistic Gun 6 | . 28 19 10 . . 12 13 9 12 1 . 2 1 . . Ballistic Cannon 1 | . . . . 1 . . . . . 6 . . . . . Piercing Weapon 1 | . . . . . . . . . . 1 5 3 . . . Peak Build Rating 74 | 9 9 13 19 34 38 46 48 48 61 68 74 68 58 20 53 Average Rating 33 | 8 9 10 16 24 37 40 46 44 54 56 58 52 27 20 27 On Entrance 32 | . 9 9 13 19 34 38 46 48 47 51 37 68 58 20 20 Naked Turns . | . . . . . . . . . . . . . . . . Heaviest Build 118 | 9 11 15 23 28 24 44 46 48 51 118 52 52 26 8 35 Greatest Support 77 | 20 20 20 20 30 27 50 53 53 77 65 47 50 75 12 40 Greatest Overweight (x) 7 | . . . 1 7 . 1 . . . 5 1 3 2 . 5 Average Overweight (x) . | . . . . . . . . . . . . . . . . Largest Inventory Capacity 25 | 5 5 5 8 20 8 8 8 8 8 25 5 5 5 5 5 Average Capacity 7 | 5 5 5 6 8 8 8 8 8 8 16 5 5 5 5 5 Most Carried 10 | 3 5 5 8 8 8 8 8 8 8 10 5 5 5 4 5 Average Carried 4 | 2 3 3 3 6 7 6 7 7 6 6 3 4 4 4 4 Final Capacity 8 | 5 5 5 8 8 8 8 8 8 8 5 5 5 5 5 5 Final Carried 8 | 3 4 5 7 8 8 8 8 8 7 3 4 4 4 4 4 Class Distribution -------------------- 46% | Mutant 29% | Scavenger-Mutant 12% | Hacker-Mutant 7% | Generator-Mutant Dominant Class ---------------- Mutant | -10/Materials Mutant | -10/Mines Mutant | -9/Materials Scavenger-Mutant | -8/Materials Scavenger-Mutant | -7/Factory Scavenger-Mutant | -7/Garrison Scavenger-Mutant | -7/Factory Scavenger-Mutant | -7/Garrison Scavenger-Mutant | -6/Factory Hacker-Mutant | -5/Factory Hacker-Mutant | -4/Factory Generator-Mutant | -4/Upper Caves Mutant | -4/Upper Caves Mutant | -4/Warlord Mutant | -3/Proximity Caves Resources | -11 -10 -10 -9 -8 -7 -7 -7 -7 -6 -5 -4 -4 -4 -4 -3 ----------- Run | Yrd Mat Min Mat Mat Fac Gar Fac Gar Fac Fac Fac Upp Upp War Pro Matter Collected 3053 | 313 . 131 70 221 . 800 . 161 391 496 65 231 104 . 70 Remotely . | . . . . . . . . . . . . . . . . Salvage Created 4055 | 90 . 120 164 445 . 882 . 87 665 533 160 381 289 . 239 Parts 198 | 14 . 1 9 18 . 56 . 5 34 22 6 19 12 . 2 Haulers Intercepted . | . . . . . . . . . . . . . . . . Recyclers Shooed . | . . . . . . . . . . . . . . . . Parts Field Recycled . | . . . . . . . . . . . . . . . . Retrieved Matter . | . . . . . . . . . . . . . . . . Parts Self-Destructed 25 | . . . . . . . . . . . . 11 9 . 5 Prevented 5 | . . . . . . . . . . . . 5 . . . Kills | -11 -10 -10 -9 -8 -7 -7 -7 -7 -6 -5 -4 -4 -4 -4 -3 ------- Run | Yrd Mat Min Mat Mat Fac Gar Fac Gar Fac Fac Fac Upp Upp War Pro Combat Hostiles Destroyed 77 | 1 . 7 3 7 . 20 . 2 10 7 . 12 7 . 1 Melee 10 | . . . . . . . . . . 5 . 5 . . . Guns 53 | 1 . 5 . 7 . 14 . 2 10 . . 7 6 . 1 Cannons 5 | . . . . . . 5 . . . . . . . . . AOE 5 | . . 2 3 . . . . . . . . . . . . Classes Destroyed 13 | 2 . 2 2 2 . 4 . . 1 . . . . . . Worker 2 | . . . . . . . . . 2 . . . . . . Tunneler 3 | 2 . . . . . . . . . 1 . . . . . Recycler 5 | . . 1 1 1 . . . . . 1 1 . . . . Operator 4 | . . . . 1 . . . . 1 1 1 . . . . Watcher 4 | . . . 2 . . . . . 1 1 . . . . . Swarmer 19 | . . . . . . 3 . . . . . 10 5 . 1 Grunt 26 | 1 . . 2 3 . 8 . 1 6 4 . 1 . . . Duelist 2 | . . . . . . 1 . . 1 . . . . . . Sentry 10 | . . . 1 3 . 3 . . 2 . . 1 . . . Specialist 1 | . . . . . . 1 . . . . . . . . . Hunter 5 | . . . . 1 . 2 . . . . . . 2 . . Programmer 7 | . . . . . . 2 . 1 1 3 . . . . . Assembled 7 | . . 7 . . . . . . . . . . . . . Best Kill Streak 5 | 3 . 4 4 3 . 5 . 1 5 3 1 4 5 . 1 Combat Bots Only 5 | 1 . 4 2 3 . 5 . 1 3 3 . 4 5 . 1 Max Kills in Single Turn 2 | 1 . 2 2 1 . 2 . 1 1 1 1 1 1 . 1 Gunslinging 1 | . . 1 . . . 1 . . . . . . . . . Exploded 2 | . . 2 2 . . . . . . . . . . . . Melee 1 | . . . . . . . . . . 1 . 1 . . . Uniques/NPCs Destroyed . | . . . . . . . . . . . . . . . . Combat | -11 -10 -10 -9 -8 -7 -7 -7 -7 -6 -5 -4 -4 -4 -4 -3 -------- Run | Yrd Mat Min Mat Mat Fac Gar Fac Gar Fac Fac Fac Upp Upp War Pro Hostile Shots Fired 1192 | 12 . 56 21 51 1 224 . 19 113 265 34 132 162 14 88 Missed 379 | 4 . 18 8 12 1 61 . 8 40 89 14 33 50 7 34 Damage Taken 10918 | 64 . 384 190 350 . 1616 . 98 1223 3103 316 1201 1455 125 793 Core 2724 | . . 60 33 125 . 447 . . 101 792 42 386 449 28 261 Absorbed by Shields 123 | . . . . . . 85 . . . 38 . . . . . Ignored by Resistances 3314 | 21 . 115 56 100 . 504 . 28 334 855 88 359 424 54 376 Core Remaining (%) 69 | 100 . 76 91 77 . . . 36 88 20 . . . . . Volleys Fired 272 | 9 1 12 10 24 5 72 . 16 47 6 2 27 24 . 17 Largest 2 | 2 2 2 2 2 2 2 . 2 2 2 1 2 2 . 2 Hottest 169 | 40 40 50 50 126 126 126 . 56 56 114 65 65 169 . 146 Shots Fired 470 | 18 2 21 20 48 10 122 . 20 93 11 2 31 39 . 33 Gun 399 | 18 2 18 10 40 10 94 . 10 92 . 2 31 39 . 33 Cannon 40 | . . . . 8 . 21 . . . 11 . . . . . Launcher 13 | . . 3 10 . . . . . . . . . . . . Special 18 | . . . . . . 7 . 10 1 . . . . . . Kinetic 295 | 18 2 18 10 8 . 95 . 10 92 11 . 28 3 . . Thermal 139 | . . . . 40 10 20 . . . . . . 36 . 33 Explosive 13 | . . 3 10 . . . . . . . . . . . . Electromagnetic 5 | . . . . . . . . . . . 2 3 . . . Robot Hit Streak 18 | 8 3 10 9 17 3 13 . 9 15 4 6 16 13 . 18 Robot Miss Streak 4 | 1 . 3 2 1 2 2 . 1 4 4 . 1 3 . 3 Penetration Max 1 | . . . . . . 1 . . 1 1 . . . . . Secondary Targets 5 | . . 1 . . . 1 . . . . . . 2 . 1 Max Gunslinging Chain 1 | . . 1 . . . 1 . . . . . . 1 . 1 Shots Hit Robots 395 | 13 2 12 13 39 6 86 . 15 65 48 3 36 30 . 27 Core Hits 170 | 4 . 12 10 17 . 37 . 2 31 17 3 14 11 . 12 Critical Kills 8 | . . . . . . 2 . . 5 . . 1 . . . Critical Parts Destroyed 2 | . 1 . . . . . . . . 1 . . . . . Critical Strikes 24 | . 1 . . 5 1 4 . . 5 4 . 3 . . 1 Burn 9 | . . . . 5 1 2 . . . . . . . . 1 Destroy 9 | . 1 . . . . 2 . . 5 . . 1 . . . Smash 1 | . . . . . . . . . . 1 . . . . . Impale 5 | . . . . . . . . . . 3 . 2 . . . Melee Attacks 63 | . . . . . . . . . . 50 1 12 . . . Impact 16 | . . . . . . . . . . 16 . . . . . Slashing . | . . . . . . . . . . . . . . . . Piercing 47 | . . . . . . . . . . 34 1 12 . . . Sneak Attacks 2 | . . . . . . . . . . 1 1 . . . . Combat Hostiles . | . . . . . . . . . . . . . . . . Follow-up Attacks 4 | . . . . . . . . . . 4 . . . . . Damage Inflicted 8976 | 167 26 290 385 670 103 1850 . 135 1431 1786 126 700 789 . 518 Guns 5888 | 167 26 148 70 605 103 1420 . 135 1431 . 37 439 789 . 518 Cannons 678 | . . . . 65 . 430 . . . 183 . . . . . Explosions 457 | . . 142 315 . . . . . . . . . . . . Melee 1895 | . . . . . . . . . . 1545 89 261 . . . Ramming 58 | . . . . . . . . . . 58 . . . . . Kinetic 4197 | 167 26 148 70 65 . 1525 . 135 1431 183 . 397 50 . . Thermal 2290 | . . . . 605 103 325 . . . . . . 739 . 518 Explosive 457 | . . 142 315 . . . . . . . . . . . . Electromagnetic 79 | . . . . . . . . . . . 37 42 . . . Impact 537 | . . . . . . . . . . 537 . . . . . Slashing . | . . . . . . . . . . . . . . . . Piercing 1358 | . . . . . . . . . . 1008 89 261 . . . Highest Corruption 13 | . . . . . . 1 1 1 1 13 . . . . . Average Corruption 2 | . . . . . . 1 1 1 1 7 . . . . . Corruption Purged 5 | . . . . . . . . . . 5 . . . . . Corruption Blocked . | . . . . . . . . . . . . . . . . Effects 40 | . . . . . . 13 1 3 3 20 . . . . . Message Errors 9 | . . . . . . 2 . . 1 6 . . . . . Matter Fused 6 | . . . . . . 1 1 1 1 2 . . . . . Heat Flow Errors 3 | . . . . . . 2 . . . 1 . . . . . Energy Discharges 10 | . . . . . . 2 . 1 1 6 . . . . . Parts Rejected 1 | . . . . . . . . . . 1 . . . . . Data Loss (minor) 6 | . . . . . . 2 . . . 4 . . . . . Data Loss (major) 3 | . . . . . . 3 . . . . . . . . . Misfires 1 | . . . . . . . . 1 . . . . . . . Weapon Failures 1 | . . . . . . 1 . . . . . . . . . Overload Shots . | . . . . . . . . . . . . . . . . Overflow Damage 210 | . . . 6 11 . 4 . . . 139 . 50 . . . Projectiles 15 | . . . . 11 . 4 . . . . . . . . . Explosions 6 | . . . 6 . . . . . . . . . . . . Melee 189 | . . . . . . . . . . 139 . 50 . . . Knockbacks 10 | . . . . 1 . 4 . . . 5 . . . . . Impact 3 | . . . . . . . . . . 3 . . . . . Kinetic 6 | . . . . 1 . 3 . . . 2 . . . . . Secondary 1 | . . . . . . 1 . . . . . . . . . Self-Inflicted Damage 60 | . . . 60 . . . . . . . . . . . . Shots 4 | . . . 4 . . . . . . . . . . . . Rammed . | . . . . . . . . . . . . . . . . Targets Rammed 7 | . . . . . . . . . . 7 . . . . . Kicked 7 | . . . . . . . . . . 7 . . . . . Crushed . | . . . . . . . . . . . . . . . . Highest Temperature 424 | . . . 2 357 9 167 . 9 123 233 28 87 424 227 126 Average Temperature 104 | . . . 2 151 4 26 . 4 40 67 10 38 253 115 54 Received Heat Transfer 1757 | 48 . . 72 162 . 416 . 48 336 399 78 27 36 . 135 Effects 7 | . . . . 1 . . . . . . . . 6 . . Shutdowns 2 | . . . . . . . . . . . . . 2 . . Energy Bleed 3 | . . . . 1 . . . . . . . . 2 . . Interference 2 | . . . . . . . . . . . . . 2 . . Siege Activations . | . . . . . . . . . . . . . . . . Robots Corrupted 2 | . . . . . . . . . . 2 . . . . . Combat Hostiles 2 | . . . . . . . . . . 2 . . . . . Parts Fried 3 | . . . . . . . . . . 3 . . . . . Impact Corruptions 5 | . . . . . . . . . . 5 . . . . . Robots Melted 2 | . . . . . . 1 . . . . . . 1 . . Combat Hostiles 2 | . . . . . . 1 . . . . . . 1 . . Parts Melted 13 | . . . . 6 . 1 . . . . . . 4 . 2 Heat Transferred 4995 | . . . . 1702 296 851 . . . . . . 1073 . 1073 Parts Sabotaged 4 | . . . . . . . . . . . . . . . 4 Parts Stolen . | . . . . . . . . . . . . . . . . Parts Stripped . | . . . . . . . . . . . . . . . . Power Chain Reactions . | . . . . . . . . . . . . . . . . Alert | -11 -10 -10 -9 -8 -7 -7 -7 -7 -6 -5 -4 -4 -4 -4 -3 ------- Run | Yrd Mat Min Mat Mat Fac Gar Fac Gar Fac Fac Fac Upp Upp War Pro Peak Influence 809 | 30 . 28 142 329 65 809 367 445 329 150 72 . . . . Initial 367 | . . . . 51 50 39 367 226 202 52 42 . . . . Average 127 | 2 . 14 66 245 55 414 367 355 223 38 48 . . . . Maximum Alert Level 3 | . . . . 1 . 3 1 2 1 . . . . . . Low Security (%) 70 | 100 100 100 100 31 100 17 . . 29 100 100 . . . . Level 1 19 | . . . . 68 . 28 100 72 70 . . . . . . Level 2 7 | . . . . . . 45 . 27 . . . . . . . Level 3 1 | . . . . . . 9 . . . . . . . . . Level 4 . | . . . . . . . . . . . . . . . . Level 5 . | . . . . . . . . . . . . . . . . High Security . | . . . . . . . . . . . . . . . . Max Security . | . . . . . . . . . . . . . . . . Squads Dispatched 16 | . . . 2 1 . . . . 5 5 1 . 1 . 1 Investigation 5 | . . . 1 . . . . . 3 1 . . . . . Extermination 4 | . . . . . . . . . 2 2 . . . . . Reinforcement 5 | . . . 1 1 . . . . . 2 1 . . . . Assault 2 | . . . . . . . . . . . . . 1 . 1 Garrison . | . . . . . . . . . . . . . . . . Intercept . | . . . . . . . . . . . . . . . . Searches Triggered . | . . . . . . . . . . . . . . . . Construction Impeded . | . . . . . . . . . . . . . . . . Haulers Reinforced . | . . . . . . . . . . . . . . . . Active Scanning Responses . | . . . . . . . . . . . . . . . . Cargo Convoy Interrupts 1 | . . . . . . . . . . 1 . . . . . Stealth | -11 -10 -10 -9 -8 -7 -7 -7 -7 -6 -5 -4 -4 -4 -4 -3 --------- Run | Yrd Mat Min Mat Mat Fac Gar Fac Gar Fac Fac Fac Upp Upp War Pro Distress Signals 7 | . 1 . 1 1 1 . . . 2 . . . . . 1 Communications Jammed . | . . . . . . . . . . . . . . . . Distress Signals . | . . . . . . . . . . . . . . . . Times Spotted 201 | 1 2 12 9 11 1 22 . 12 31 26 7 31 19 2 15 Peak Tracking Total 13 | 1 3 8 5 4 4 5 . 7 5 8 6 6 13 2 10 Tactical Retreats 28 | . . 2 . . . 1 . 4 4 2 . 10 5 . . Traps | -11 -10 -10 -9 -8 -7 -7 -7 -7 -6 -5 -4 -4 -4 -4 -3 ------- Run | Yrd Mat Min Mat Mat Fac Gar Fac Gar Fac Fac Fac Upp Upp War Pro Traps Triggered 16 | . . . . 1 . 10 . 2 2 . . . . 1 . Indirectly . | . . . . . . . . . . . . . . . . Trap Hack Attempts . | . . . . . . . . . . . . . . . . Triggered . | . . . . . . . . . . . . . . . . Disarmed . | . . . . . . . . . . . . . . . . Reprogrammed . | . . . . . . . . . . . . . . . . Reused . | . . . . . . . . . . . . . . . . Traps Extracted . | . . . . . . . . . . . . . . . . Installed . | . . . . . . . . . . . . . . . . Triggered 7 | . . . . . . . . . . 1 . 5 . . 1 Machines | -11 -10 -10 -9 -8 -7 -7 -7 -7 -6 -5 -4 -4 -4 -4 -3 ---------- Run | Yrd Mat Min Mat Mat Fac Gar Fac Gar Fac Fac Fac Upp Upp War Pro Machines Disabled 9 | . . . . 2 . 5 . 2 . . . . . . . Max in Single Turn 1 | . . . . 1 . 1 . 1 . . . . . . . Garrison Relay 5 | . . . . . . 3 . 2 . . . . . . . Machines Repaired . | . . . . . . . . . . . . . . . . Machines Dismantled . | . . . . . . . . . . . . . . . . Machines Sabotaged . | . . . . . . . . . . . . . . . . Overloaded Fab Kills . | . . . . . . . . . . . . . . . . Hacking | -11 -10 -10 -9 -8 -7 -7 -7 -7 -6 -5 -4 -4 -4 -4 -3 --------- Run | Yrd Mat Min Mat Mat Fac Gar Fac Gar Fac Fac Fac Upp Upp War Pro Machines Accessed 17 | . . 1 1 . 2 3 1 . 5 3 . 1 . . . Terminals 14 | . . . 1 . 1 3 . . 5 3 . 1 . . . Fabricators . | . . . . . . . . . . . . . . . . Repair Stations . | . . . . . . . . . . . . . . . . Recycling Units . | . . . . . . . . . . . . . . . . Scanalyzers . | . . . . . . . . . . . . . . . . Garrison Access 2 | . . . . . 1 . 1 . . . . . . . . Total Hacks 35 | . . 1 2 . 4 7 2 . 11 6 . 2 . . . Successful 26 | . . 1 2 . 3 4 2 . 9 3 . 2 . . . Failed 9 | . . . . . 1 3 . . 2 3 . . . . . Catastrophic . | . . . . . . . . . . . . . . . . Database Lockouts . | . . . . . . . . . . . . . . . . Manual 4 | . . . 1 . . . . . 2 1 . . . . . Terminals 30 | . . . 2 . 2 7 . . 11 6 . 2 . . . Fabricators . | . . . . . . . . . . . . . . . . Repair Stations . | . . . . . . . . . . . . . . . . Recycling Units . | . . . . . . . . . . . . . . . . Scanalyzers . | . . . . . . . . . . . . . . . . Garrison Access 4 | . . . . . 2 . 2 . . . . . . . . Terminal Hacks 23 | . . 1 2 . 2 4 . . 9 3 . 2 . . . Record 10 | . . . 2 . 2 . . . 4 . . 2 . . . Open Door 1 | . . 1 . . . . . . . . . . . . . Open DSF 4 | . . . . . . . . . 1 3 . . . . . Emergency Access Points 1 | . . . . . . 1 . . . . . . . . . Dispatch Records 1 | . . . . . . . . . 1 . . . . . . Surveillance Status 1 | . . . . . . . . . 1 . . . . . . Recall Investigation 1 | . . . . . . . . . 1 . . . . . . Recall Extermination 1 | . . . . . . . . . 1 . . . . . . Garrison Registry 2 | . . . . . . 2 . . . . . . . . . Security Stations 1 | . . . . . . 1 . . . . . . . . . Fabricator Hacks . | . . . . . . . . . . . . . . . . Repair Station Hacks . | . . . . . . . . . . . . . . . . Recycling Unit Hacks . | . . . . . . . . . . . . . . . . Scanalyzer . | . . . . . . . . . . . . . . . . Garrison Access Hacks 3 | . . . . . 1 . 2 . . . . . . . . Unlock Access 2 | . . . . . 1 . 1 . . . . . . . . Coupler Status 1 | . . . . . . . 1 . . . . . . . . Unauthorized Hacks . | . . . . . . . . . . . . . . . . Terminals . | . . . . . . . . . . . . . . . . Fabricators . | . . . . . . . . . . . . . . . . Repair Stations . | . . . . . . . . . . . . . . . . Recycling Units . | . . . . . . . . . . . . . . . . Scanalyzers . | . . . . . . . . . . . . . . . . Garrison Access . | . . . . . . . . . . . . . . . . Data Cores Recovered 1 | . . . . . . . . . 1 . . . . . . Used . | . . . . . . . . . . . . . . . . Hacking Detections 9 | . . . . . 2 2 1 . 3 1 . . . . . Full Trace Events 4 | . . . . . . 1 . . 2 1 . . . . . Feedback Events 1 | . . . . . . . . . 1 . . . . . . Corruption 1 | . . . . . . . . . 1 . . . . . . Feedback Blocked . | . . . . . . . . . . . . . . . . Robot Schematics Acquired . | . . . . . . . . . . . . . . . . Robots Built . | . . . . . . . . . . . . . . . . Authchips . | . . . . . . . . . . . . . . . . Time . | . . . . . . . . . . . . . . . . Total Robot Build Rating . | . . . . . . . . . . . . . . . . Part Schematics Acquired . | . . . . . . . . . . . . . . . . Parts Built . | . . . . . . . . . . . . . . . . Authchips . | . . . . . . . . . . . . . . . . Time . | . . . . . . . . . . . . . . . . Total Part Build Rating . | . . . . . . . . . . . . . . . . Parts Repaired . | . . . . . . . . . . . . . . . . Time . | . . . . . . . . . . . . . . . . Parts Recycled . | . . . . . . . . . . . . . . . . Recycled Matter . | . . . . . . . . . . . . . . . . Retrieved Matter . | . . . . . . . . . . . . . . . . Retrieved Components . | . . . . . . . . . . . . . . . . Parts Scanalyzed . | . . . . . . . . . . . . . . . . Part Schematics Acquired . | . . . . . . . . . . . . . . . . Parts Damaged . | . . . . . . . . . . . . . . . . Bothacking | -11 -10 -10 -9 -8 -7 -7 -7 -7 -6 -5 -4 -4 -4 -4 -3 ------------ Run | Yrd Mat Min Mat Mat Fac Gar Fac Gar Fac Fac Fac Upp Upp War Pro Used RIF Installer 1 | . . . . . . 1 . . . . . . . . . Robots Hacked 8 | . . . . . . . . 7 1 . . . . . . Non-combat . | . . . . . . . . . . . . . . . . Combat 8 | . . . . . . . . 7 1 . . . . . . Robot Hacks Applied 10 | . . . . . . . . 9 1 . . . . . . parse_system 1 | . . . . . . . . 1 . . . . . . . disable_weapons 1 | . . . . . . . . 1 . . . . . . . overwrite_iff 3 | . . . . . . . . 3 . . . . . . . formatsys_high 5 | . . . . . . . . 4 1 . . . . . . Relay Couplers Released 19 | . . . . . . 11 . 8 . . . . . . . Machine Destruction 19 | . . . . . . 11 . 8 . . . . . . . Attached 4 | . . . . . . . . 3 1 . . . . . . Fabnet Peak Effective % . | . . . . . . . . . . . . . . . . Robots Rewired . | . . . . . . . . . . . . . . . . Allies Hacked . | . . . . . . . . . . . . . . . . Hacks Repelled . | . . . . . . . . . . . . . . . . Allies | -11 -10 -10 -9 -8 -7 -7 -7 -7 -6 -5 -4 -4 -4 -4 -3 -------- Run | Yrd Mat Min Mat Mat Fac Gar Fac Gar Fac Fac Fac Upp Upp War Pro Total Allies 7 | . . . . . . . . 6 1 . . . . . . Largest Group 3 | . . . . . . . . 3 3 . . . . . . Highest-Rated Group 64 | . . . . . . . . 64 64 . . . . . . Highest-Rated Ally 41 | . . . . . . . . 32 41 . . . . . . Total Orders . | . . . . . . . . . . . . . . . . Ally Attacks 48 | . . . 14 . . . . 21 13 . . . . . . Total Damage 655 | . . . 57 . . . . 270 328 . . . . . . Kills 4 | . . . . . . . . 2 2 . . . . . . Allies Corrupted . | . . . . . . . . . . . . . . . . Allies Melted . | . . . . . . . . . . . . . . . . Intel | -11 -10 -10 -9 -8 -7 -7 -7 -7 -6 -5 -4 -4 -4 -4 -3 ------- Run | Yrd Mat Min Mat Mat Fac Gar Fac Gar Fac Fac Fac Upp Upp War Pro Robot Analysis Total . | . . . . . . . . . . . . . . . . Derelict Logs Recovered 5 | . . 2 . . . . . . . . . 1 2 . . Drone Launches 6 | . . . 3 . . . . . . 3 . . . . . Drone Recoveries 3 | . . . 3 . . . . . . . . . . . . Exploration | -11 -10 -10 -9 -8 -7 -7 -7 -7 -6 -5 -4 -4 -4 -4 -3 ------------- Run | Yrd Mat Min Mat Mat Fac Gar Fac Gar Fac Fac Fac Upp Upp War Pro Turns Passed 12885 | 3521 182 439 184 408 59 1319 140 452 1017 1386 108 2357 342 75 896 Spaces Moved 6876 | 280 99 331 118 218 71 792 105 299 671 671 139 2034 294 100 654 Core 197 | 20 . . . 3 . . . . . 10 . 12 150 . 2 Treads . | . . . . . . . . . . . . . . . . Legs 3510 | 260 99 331 118 200 . 712 105 299 671 373 . 138 89 . 115 Wheels . | . . . . . . . . . . . . . . . . Hover 2909 | . . . . 15 71 80 . . . 28 139 1884 55 100 537 Flight 260 | . . . . . . . . . . 260 . . . . . Fastest Speed 40 | 50 120 120 120 52 52 52 120 120 120 40 55 50 50 70 70 Average Speed 106 | 115 120 120 122 122 52 122 120 120 120 137 62 93 85 70 80 Slowest Speed 400 | 120 120 120 190 400 52 190 120 120 120 300 115 200 150 70 300 Overloaded Moves . | . . . . . . . . . . . . . . . . Propulsion Burnouts . | . . . . . . . . . . . . . . . . Robots Hopped . | . . . . . . . . . . . . . . . . Cave-ins Triggered . | . . . . . . . . . . . . . . . . Exploration Rate (%) 36 | 35 22 73 19 31 5 67 3 41 22 23 4 99 47 20 79 Regions Visited 15 Branch Regions 5 Pre-discovered Areas . | . . . . . . . . . . . . . . . . Known Exits Taken 5 | . . . 1 1 1 . 1 . . 1 . . . . . Unknown Exits Taken 8 | 1 1 1 . . . . . . 1 . 1 1 1 1 . Scrap Searched 6 | . . 1 . . . . . . . . . 2 2 . 1 Spaces Dug 1 | . . . . . . . . . 1 . . . . . . Terrain Destroyed 74 | . . 27 37 . . 2 . . 1 7 . . . . . Melee . | . . . . . . . . . . . . . . . . Projectile 10 | . . . . . . 2 . . 1 7 . . . . . AOE 64 | . . 27 37 . . . . . . . . . . . . Terrain Rammed . | . . . . . . . . . . . . . . . . Walls Destroyed . | . . . . . . . . . . . . . . . . Machines Disabled . | . . . . . . . . . . . . . . . . Actions | -11 -10 -10 -9 -8 -7 -7 -7 -7 -6 -5 -4 -4 -4 -4 -3 --------- Run | Yrd Mat Min Mat Mat Fac Gar Fac Gar Fac Fac Fac Upp Upp War Pro Total 11911 | 3460 160 351 138 312 82 1019 121 376 789 1049 157 2451 348 104 994 Wait 4309 | 3154 57 2 2 23 2 42 . 41 49 257 . 347 19 5 309 Move 6856 | 279 98 330 117 217 70 785 105 298 670 670 138 2033 293 99 654 Hop . | . . . . . . . . . . . . . . . . Pick Up 140 | 10 2 3 3 19 2 23 6 4 7 26 8 14 6 . 7 Fast Attach . | . . . . . . . . . . . . . . . . Attach 108 | 7 . 2 4 11 2 14 3 1 7 24 6 14 6 . 7 Detach 5 | . . . . 2 . . . . 1 2 . . . . . Swap 49 | 1 1 2 1 6 1 14 1 8 6 7 1 . . . . Drop 44 | . 1 . 1 10 . 10 6 3 2 6 1 4 . . . Fire 272 | 9 1 12 10 24 5 72 . 16 47 6 2 27 24 . 17 Melee 57 | . . . . . . . . . . 44 1 12 . . . Ram . | . . . . . . . . . . . . . . . . Kick 7 | . . . . . . . . . . 7 . . . . . Crush . | . . . . . . . . . . . . . . . . Escape Stasis 64 | . . . . . . 59 . 5 . . . . . . . Rewire . | . . . . . . . . . . . . . . . . Trap . | . . . . . . . . . . . . . . . . Miscellaneous . | . . . . . . . . . . . . . . . . Route ------- -11/Scrapyard -10/Materials -10/Mines -9/Materials -8/Materials -7/Factory -7/Garrison (discovered 3 exits: *Fac x3) -7/Factory -7/Garrison -6/Factory -5/Factory -4/Factory -4/Upper Caves -4/Upper Caves -4/Warlord -3/Proximity Caves History --------- Turn | Location | Event 2 | -11/Scrapyard | Met Revision 17 55 | -11/Scrapyard | Discovered new exit (range 8) 3522 | -11/Scrapyard | Entered Materials 3523 | -10/Materials | Build established: Mutant 3676 | -10/Materials | Discovered new exit (range 16) 3704 | -10/Materials | Entered Mines 3782 | -10/Mines | Assembled infested the area 3906 | -10/Mines | Learned Materials terminal intel 3947 | -10/Mines | Found the Drone Emporium 3949 | -10/Mines | Learned Materials emergency access door positions 3952 | -10/Mines | Found Prototype Device 3953 | -10/Mines | Identified Thief Drone Bay 4093 | -10/Mines | Discovered new exit (range 7) 4143 | -10/Mines | Entered Materials 4143 | -9/Materials | Evolved 2 slots: Utility x2 4145 | -9/Materials | Loaded intel: 12 terminal locations 4304 | -9/Materials | Discovered new exit (range 10) 4325 | -9/Materials | Identified exit to Materials 4327 | -9/Materials | Entered another Materials area 4327 | -8/Materials | Evolved 2 slots: Power x1, Propulsion x1 4693 | -8/Materials | Discovered new exit (range 13) 4734 | -8/Materials | Identified exit to Factory 4735 | -8/Materials | Entered Factory 4735 | -7/Factory | Evolved 2 slots: Utility x2 4769 | -7/Factory | Build established: Scavenger-Mutant 4792 | -7/Factory | Identified exit to Garrison 4794 | -7/Factory | Entered Garrison 4844 | -7/Garrison | Triggered checkpoint 4852 | -7/Garrison | Triggered checkpoint 4901 | -7/Garrison | Discovered new exit (range 10) 4911 | -7/Garrison | Identified exit to Factory 4912 | -7/Garrison | Attempted to access garrison exit controls, blocked by remote lockdown 4957 | -7/Garrison | Lost 8 parts (1p3n3u1w) 5004 | -7/Garrison | Triggered checkpoint 5029 | -7/Garrison | Core integrity fell below 50% 5111 | -7/Garrison | Garrison Relay disabled 5282 | -7/Garrison | Triggered checkpoint 5344 | -7/Garrison | Triggered checkpoint 5356 | -7/Garrison | Discovered exit to Factory (range 10) 5367 | -7/Garrison | Attempted to access garrison exit controls, blocked by remote lockdown 5426 | -7/Garrison | Garrison Relay disabled 5486 | -7/Garrison | Triggered checkpoint 5613 | -7/Garrison | Discovered exit to Factory (range 15) 5631 | -7/Garrison | Discovered exit to Factory (range 66) 5631 | -7/Garrison | Discovered exit to Factory (range 60) 5631 | -7/Garrison | Discovered exit to Factory (range 7) 5660 | -7/Garrison | Triggered checkpoint 5811 | -7/Garrison | Garrison Relay disabled 5920 | -7/Garrison | Installed Relay Interface Framework 6060 | -7/Garrison | Learned Factory security intel 6107 | -7/Garrison | Discovered exit to Factory (range 66) 6107 | -7/Garrison | Discovered exit to Factory (range 60) 6107 | -7/Garrison | Discovered exit to Factory (range 7) 6113 | -7/Garrison | Entered Factory 6253 | -7/Factory | Identified exit to Garrison 6253 | -7/Factory | Entered Garrison 6275 | -7/Garrison | Triggered checkpoint 6348 | -7/Garrison | Garrison Relay disabled 6365 | -7/Garrison | Garrison Relay disabled 6382 | -7/Garrison | Triggered checkpoint 6551 | -7/Garrison | Triggered checkpoint 6577 | -7/Garrison | Triggered checkpoint 6650 | -7/Garrison | Discovered new exit (range 10) 6705 | -7/Garrison | Entered Factory 6705 | -6/Factory | Accompanied by 3 allies 6705 | -6/Factory | Evolved 2 slots: Propulsion x1, Utility x1 7647 | -6/Factory | Spotted B-75 Beast 7703 | -6/Factory | Discovered new exit (range 13) 7722 | -6/Factory | Entered another Factory area 7722 | -5/Factory | Evolved 2 slots: Power x1, Utility x1 8326 | -5/Factory | Build established: Hacker-Mutant 8608 | -5/Factory | Lost 5 parts (1p2n2u) 8685 | -5/Factory | Lost 5 parts (3u2w) 8693 | -5/Factory | Core integrity fell below 50% 8722 | -5/Factory | Cargo convoy interrupted 8901 | -5/Factory | System corruption reached 10% 8919 | -5/Factory | Lost 3 allies 8928 | -5/Factory | Lost 3 parts (1p2n) 9035 | -5/Factory | Spotted B-75 Beast 9091 | -5/Factory | Discovered new exit (range 4) 9095 | -5/Factory | Identified exit to Factory 9108 | -5/Factory | Entered another Factory area 9108 | -4/Factory | Evolved 2 slots: Power x1, Utility x1 9134 | -4/Factory | Lost 5 parts (1p1n3u) 9188 | -4/Factory | Spotted B-86 Titan 9211 | -4/Factory | Discovered new exit (range 5) 9216 | -4/Factory | Entered Upper Caves 9485 | -4/Upper Caves | Build established: Generator-Mutant 9994 | -4/Upper Caves | Encountered a Warlord checkpoint 10049 | -4/Upper Caves | Discovered new exit (range 6) 10416 | -4/Upper Caves | Build established: Hacker-Mutant 10701 | -4/Upper Caves | Lost 4 parts (3p1u) 10884 | -4/Upper Caves | Lost 6 parts (1p3u2w) 11156 | -4/Upper Caves | Build established: Mutant 11361 | -4/Upper Caves | Attracted the attention of an 0b10 checkpoint 11381 | -4/Upper Caves | Learned Research security intel 11388 | -4/Upper Caves | Found DCF Scrap (12 items) 11573 | -4/Upper Caves | Entered another Upper Caves area 11630 | -4/Upper Caves | Lost 3 parts (2p1n) 11640 | -4/Upper Caves | Learned Research non-interactive machine intel 11664 | -4/Upper Caves | Core integrity fell below 50% 11708 | -4/Upper Caves | Lost 5 parts (1p2n2w) 11770 | -4/Upper Caves | Attracted the attention of an 0b10 outpost 11817 | -4/Upper Caves | Lost 4 parts (1n1u2w) 11841 | -4/Upper Caves | Learned 8 Research zone layouts 11907 | -4/Upper Caves | Discovered new exit (range 11) 11915 | -4/Upper Caves | Entered Warlord 11948 | -4/Warlord | RIF detected upon attempting to enter Warlord's base 11948 | -4/Warlord | Attacked by Warlord forces 11957 | -4/Warlord | Spotted 7O-NVF(B) 11957 | -4/Warlord | Spotted VS-772(B) 11983 | -4/Warlord | Discovered new exit (range 13) 11990 | -4/Warlord | Entered Proximity Caves 12173 | -3/Proximity Caves | Received a Behemoth hack from an annoying Tinkerer 12394 | -3/Proximity Caves | Unaware initiated a cargo recovery operation 12821 | -3/Proximity Caves | Spotter reported a threat 12837 | -3/Proximity Caves | Attracted the attention of an 0b10 outpost 12851 | -3/Proximity Caves | Core integrity fell below 20% 12886 | -3/Proximity Caves | Destroyed by G-73 Enforcer with Phase Gun Last Messages --------------- M-36 Artificer repairs B-74 Champion. Mak. Light Armor Plating blown off. Flexi-carbon Leg blown off. Hvy. Beamcaster blown off. Mak. Light Armor Plating blown off. E-15 Imp destroyed. M-36 Artificer repairs Y-72 Warden. Cesium-ion Thruster fries itself beyond repair. Segregator fries itself beyond repair. Particle Gun destroyed. Imp. Gyrokinetic Inverter destroyed. Penetrated by Slug. Slug penetrates Wall. B-74 Champion suffers critical hit (Burn). G-67 Veteran suffers critical hit (Burn). B-74 Champion heat short circuits Med. Treads. Flexi-carbon Leg destroyed. M-36 Artificer repairs B-74 Champion. [Achievement: 5k Club] [Achievement: 10k Club] Map ----- +----------------------------------------------------+ | ### ### ##??????# " #??? | | ## #### #??????## ### #??? | | #??????## #?## ### ##?? | | ######## ##?#####?## #?? | | ######### #????????## ##?? | | #??????# &&& ####?????????####??? | | #??????## ## ##### #??????????????????? | | ##??????# # #???# #?????? ??????????? | | ##???### #!#??## #?????? ??????????? | | ##??# #%#### #?????? ##????????? | | ##?## #!! ###???? ????????? | | #??## ####### ######" ????????? | | # #???# #????# ##%"#????????? | | # # ##???### ####?# #" #????????? | | # #####??????# " ##### ### # #????????? | | # #??????????##" #### ## #????????? | | # #???####????## ###### ##???????? | | # #??## #????## ###???## ##??????? | | # #### #????# #### ##?????# ####???# | | # ## ###### ## #??###?????## ### # | | # ## ##???####### # | | # ### ##??# ## # | | ## ### #?## ##??# % | | ### #?# #??# #??# ! | | ##### #### #?# #### =% | | ####?## ### ##?## @ ## [!! ## | | #?????# #####???## g ## #? | | ??????# ## #???????#bb gg sg ##?##? | | ####### ## #?####?## #????? | | ## #?# ### m #????? | | #########?# #### #????? | | #########?????????# ######??## #####????? | | ??????????????????######????????#########????????? | | ?????????????????????????????????????????????????? | | ?????????????????????????????????????????????????? | | ?????????????????????????????????????????????????? | | ?????????????????????????????????????????????????? | | ?????????????????????????????????????????????????? | | ?????????????????????????????????????????????????? | | ?????????????????????????????????????????????????? | | ?????????????????????????????????????????????????? | | ?????????????????????????????????????????????????? | | ?????????????????????????????????????????????????? | | ?????????????????????????????????????????????????? | | ?????????????????????????????????????????????????? | | ?????????????????????????????????????????????????? | | ?????????????????????????????????????????????????? | | ?????????????????????????????????????????????????? | | | | | +----------------------------------------------------+ Best States ------------- Heat Dissipation 76 Coolant Potential 80 Energy Generation 47 Energy Capacity 745 Matter Stores 300 Matter Capacity 300 Sight Range 16 Robot Scan Range 16 Terrain Scan Range 16 Terrain Scan Density 10 ECM Strength 2 Additional Mass Support 12 Armor Coverage 600 Resistance: KI 40 Resistance: TH 20 Resistance: EX 20 Resistance: EM 20 Resistance: I 20 Resistance: S 20 Resistance: P 20 Melee Speed Boost 40 Evasion (%) 58 Targeting Accuracy 8 Melee Accuracy 5 Kinecelleration 30 Offensive Hacking 20 Defensive Hacking 10 Relay Coupler Types 2 Relay Coupler Value 52 Authchip Count 1 Item Schematics ----------------- None Robot Schematics ------------------ None Fabricated ------------ Nothing Alien Tech Used ----------------- None Achievements -------------- 10k Club 5k Club Assimilation Complete GoHome() I Spy I Survived The Infestation Infiltrator It's Just You Librarian Made in Tau Ceti IV Novice Programmer One Hack Too Far Oops Please Form A Line Power Corrupts Risk Taker Serviceable Loadout System Compromised Tourist Uninvited Guest Challenges ------------ None Game ------ Seed ThermicDefenseAnalyzer Manual? 0 Play Time 03:02:55 Cumulative 3.6 hours Start 2024.12.04 @ 06:31:43 End 2024.12.04 @ 22:53:56 Sessions 3 Manual Loads 0 Difficulty Adventurer Special Mode None Game No. 2 Rogue 0 Adventurer 2 Explorer 0 Win Type - Total 0 Types 0/0/0/0/0/0/0/0/0 Lore% 0 Gallery% 7 Achievement% 8 Wizard Run 0 Options --------- Layout 0 ASCII 0 Keyboard 0 Movement Mouse Keybinds 0 Fullscreen 1 Font 24/Smallcaps Map View 76x50 Zoom Use 0% Tactical HUD 0 Map Filters NONE Filters NONE Steam 1 RUN: f9b379d0-44f8-49de-9d4c-efc0a7c44675